[Event "DVM U20w 2021"]
[Site "Kiel"]
[Date "2022.07.26"]
[Round "7"]
[White "Basovskiy, Jana"]
[Black "Bangsa-Giesen, Citra"]
[Result "1-0"]
[ECO "B52"]
[WhiteElo "1867"]
[BlackElo "1420"]
[Annotator "NA RC COMBH"]
[PlyCount "69"]
[EventDate "2022.07.23"]
[EventType "team-tourn"]
[EventRounds "7"]
[EventCountry "GER"]
[SourceTitle "playchess.com"]
[Source "ChessBase"]
[SourceQuality "1"]
[TimeControl "40/5400+30:1800+30"]

1. e4 {[%emt 0:00:01]} c5 {[%emt 0:00:07]} 2. Nf3 {[%emt 0:00:04]} d6 {[%emt 0:00:06]} 3. Bb5+ {[%emt 0:00:05]} Bd7 {[%emt 0:00:22]} 4. Bxd7+ {[%emt 0:01:18]} Qxd7 {[%emt 0:00:08]} 5. O-O {[%emt 0:00:13]} g6 {[%emt 0:01:27]} 6. e5 {[%emt 0:12:50]} Bg7 {[%emt 0:05:12]} 7. Re1 {[%emt 0:05:03]} Nc6 {[%emt 0:04:28]} 8. exd6 {[%emt 0:04:25]} Qxd6 {[%emt 0:00:10]} 9. Na3 {[%emt 0:00:56]} Nf6 {[%emt 0:02:27]} 10. Nc4 {[%emt 0:04:21]} Qc7 {[%emt 0:00:53]} 11. d3 {[%emt 0:05:59]} O-O {[%emt 0:01:39]} 12. a4 {[%emt 0:02:30]} b6 {[%emt 0:03:02]} 13. Bd2 {[%emt 0:11:28]} Rfe8 {[%emt 0:03:01]} 14. Qc1 {[%emt 0:02:56]} Nd7 {[%emt 0:05:49]} 15. Bh6 {[%emt 0:00:52]} Rad8 {[%emt 0:05:08]} 16. Bxg7 {[%emt 0:01:47]} Kxg7 {[%emt 0:00:09]} 17. Re4 {[%emt 0:00:44]} f6 {[%emt 0:04:17]} 18. Rh4 {[%emt 0:02:37]} h5 {[%emt 0:00:36]} (18... Kg8 $15) 19. Qe3 {[%emt 0:09:05] [#]} Rh8 {[%emt 0:09:15]} (19... Nf8 $1 $17) 20. Rh3 {[%emt 0:01:28]} g5 {[%emt 0:05:04]} 21. Rg3 {[%emt 0:07:36]} ({Of course not} 21. Nxg5 fxg5 22. Qxg5+ Kf7 $11) (21. Re1 $1 $14 {should be considered.}) 21... g4 {[%emt 0:19:42]} 22. Nh4 {[%emt 0:02:31]} (22. h3 $16) 22... Kf7 {[%emt 0:05:43]} (22... Nde5 $11 {deserves consideration.}) 23. Re1 {[%emt 0:02:08]} Nf8 {[%emt 0:00:55]} 24. Nf5 {[%emt 0:01:47]} e6 {[%emt 0:00:26]} 25. Nh4 {[%emt 0:03:14]} f5 {[%emt 0:01:31]} 26. f4 {[%emt 0:00:23]} Qe7 {[%emt 0:02:52]} 27. Ne5+ {[%emt 0:01:01]} Nxe5 {[%emt 0:00:08]} 28. Qxe5 {[%emt 0:00:04]} Rh7 {[%emt 0:01:34]} 29. Nxf5 {[%emt 0:02:24]} Qd7 {[%emt 0:04:04]} 30. Ne3 {[%emt 0:01:33]} Qxa4 {[%emt 0:02:46]} 31. f5 {[%emt 0:01:14]} Qd4 {[%emt 0:03:29]} 32. fxe6+ {[%emt 0:00:43]} Ke8 $18 {[%emt 0:01:52]} 33. Qf5 {[%emt 0:06:18]} Rd6 {[%emt 0:02:46]} 34. Rf1 {[%emt 0:01:36]} Rh8 {[%emt 0:01:18]} 35. Qf7+ {[%emt 0:00:25]} 1-0

[Event "DVM U20w 2021"]
[Site "Kiel"]
[Date "2022.07.26"]
[Round "7"]
[White "Albayrak, Nese Pinar"]
[Black "Brunner, Sophia"]
[Result "0-1"]
[ECO "B07"]
[WhiteElo "1651"]
[BlackElo "1804"]
[Annotator "NA RC COMBH"]
[PlyCount "94"]
[EventDate "2022.07.23"]
[EventType "team-tourn"]
[EventRounds "7"]
[EventCountry "GER"]
[SourceTitle "playchess.com"]
[Source "ChessBase"]
[SourceQuality "1"]
[TimeControl "40/5400+30:1800+30"]

1. e4 {[%emt 0:00:03]} d6 {[%emt 0:00:05]} 2. d4 {[%emt 0:00:04]} Nf6 {[%emt 0:00:10]} 3. Nc3 {[%emt 0:00:12]} g6 {[%emt 0:00:11]} 4. Be3 {[%emt 0:01:01]} c6 {[%emt 0:01:48]} 5. f4 {[%emt 0:01:37]} Bg7 {[%emt 0:01:06]} 6. h3 {[%emt 0:00:56]} b5 {[%emt 0:00:43]} 7. a3 {[%emt 0:02:24]} Qa5 {[%emt 0:08:12]} 8. b4 {[%emt 0:08:12]} Qc7 {[%emt 0:01:42]} 9. Nf3 {[%emt 0:00:28]} a5 {[%emt 0:08:30]} 10. Bd3 {[%emt 0:04:59]} Na6 {[%emt 0:05:56]} 11. O-O {[%emt 0:03:38]} O-O {[%emt 0:01:35]} 12. Qd2 {[%emt 0:05:37]} Bd7 {[%emt 0:00:56]} 13. Rab1 {[%emt 0:01:32]} axb4 {[%emt 0:02:20]} 14. axb4 {[%emt 0:00:08]} d5 {[%emt 0:00:37]} 15. Ne5 {[%emt 0:14:10]} dxe4 {[%emt 0:02:08]} 16. Nxd7 {[%emt 0:06:41]} Qxd7 {[%emt 0:00:38]} 17. Nxe4 {[%emt 0:00:23]} Nd5 {[%emt 0:00:34]} 18. Bf2 {[%emt 0:05:54]} Nac7 {[%emt 0:01:46]} 19. Nc5 {[%emt 0:07:24]} Qd6 {[%emt 0:01:37]} 20. f5 {[%emt 0:05:15]} Qf4 {[%emt 0:08:58]} 21. Qxf4 {[%emt 0:05:20]} Nxf4 {[%emt 0:01:04]} 22. fxg6 {[%emt 0:02:12]} hxg6 {[%emt 0:00:44]} 23. Rfd1 {[%emt 0:17:12]} Ncd5 {[%emt 0:04:10]} 24. Rb3 {[%emt 0:02:59]} Nxd3 {[%emt 0:00:29]} 25. Nxd3 {[%emt 0:00:50]} Ra2 {[%emt 0:01:18]} 26. c3 {[%emt 0:03:01]} Rfa8 {[%emt 0:01:01]} 27. Be1 {[%emt 0:01:15]} Rc2 {[%emt 0:08:30]} 28. Rc1 {[%emt 0:00:30]} Re2 {[%emt 0:08:19]} 29. Rb2 {[%emt 0:00:18]} Rxb2 {[%emt 0:04:14]} 30. Nxb2 {[%emt 0:00:02]} Nf4 {[%emt 0:00:10]} 31. Kf1 {[%emt 0:02:08]} Ra2 {[%emt 0:00:58]} 32. Rb1 {[%emt 0:00:00]} Nd5 {[%emt 0:01:32]} 33. Ke2 {[%emt 0:00:00]} Nxb4 {[%emt 0:02:11]} 34. cxb4 {[%emt 0:00:27]} Bxd4 {[%emt 0:00:05]} 35. Kd3 {[%emt 0:00:36]} Bxb2 {[%emt 0:01:18]} 36. Bh4 {[%emt 0:00:27]} f6 {[%emt 0:02:24]} 37. Re1 {[%emt 0:00:15]} Be5 {[%emt 0:00:30]} 38. g4 {[%emt 0:00:32]} Ra3+ {[%emt 0:00:27]} 39. Ke2 {[%emt 0:00:46]} Rxh3 $19 {[%emt 0:00:13]} 40. Bf2 {[%emt 0:00:08]} Bg3 {[%emt 0:02:21]} 41. Rc1 {[%emt 0:01:17]} Bxf2 {[%emt 0:00:14]} 42. Kxf2 {[%emt 0:00:13]} Rb3 {[%emt 0:00:10]} 43. Rxc6 {[%emt 0:00:35]} Rxb4 {[%emt 0:00:05]} 44. g5 {[%emt 0:00:24]} Kf7 {[%emt 0:00:38]} 45. gxf6 {[%emt 0:00:12]} exf6 {[%emt 0:00:06]} 46. Rc7+ {[%emt 0:00:39]} Ke6 {[%emt 0:00:05]} 47. Rc6+ {[%emt 0:00:04]} Ke5 {[%emt 0:00:05]} 0-1

[Event "DVM U20w 2021"]
[Site "Kiel"]
[Date "2022.07.26"]
[Round "7"]
[White "Neitzel, Emma"]
[Black "Peglau, Mirjam"]
[Result "0-1"]
[ECO "D37"]
[WhiteElo "1135"]
[BlackElo "1876"]
[Annotator "NA RC COMBH"]
[PlyCount "78"]
[EventDate "2022.07.23"]
[EventType "team-tourn"]
[EventRounds "7"]
[EventCountry "GER"]
[SourceTitle "playchess.com"]
[Source "ChessBase"]
[SourceQuality "1"]
[TimeControl "40/5400+30:1800+30"]

1. d4 {[%emt 0:00:02]} d5 {[%emt 0:00:44]} 2. c4 {[%emt 0:00:08]} e6 {[%emt 0:00:13]} 3. Nc3 {[%emt 0:00:08]} Nf6 {[%emt 0:00:21]} 4. Nf3 {[%emt 0:00:53]} Be7 {[%emt 0:00:17]} 5. Bf4 {[%emt 0:00:21]} O-O {[%emt 0:01:44]} 6. e3 {[%emt 0:01:41]} c6 {[%emt 0:02:08]} 7. cxd5 {[%emt 0:01:38]} Nxd5 {[%emt 0:03:08]} 8. Nxd5 {[%emt 0:00:22]} exd5 {[%emt 0:02:07]} 9. a3 {[%emt 0:02:31]} a5 {[%emt 0:01:33]} 10. Bd3 {[%emt 0:03:15]} h6 {[%emt 0:05:58]} 11. O-O {[%emt 0:01:59]} g5 {[%emt 0:06:59]} 12. Be5 {[%emt 0:16:13]} f6 {[%emt 0:01:41]} 13. Qc2 {[%emt 0:05:02]} fxe5 {[%emt 0:13:38]} 14. Bh7+ {[%emt 0:01:46]} Kh8 {[%emt 0:00:08]} 15. Nxe5 {[%emt 0:00:16]} Rf6 {[%emt 0:01:29]} 16. Ng6+ {[%emt 0:18:54]} (16. f4 $17 {might work better.} Nd7 17. Rae1) 16... Kxh7 {[%emt 0:06:11]} 17. Nxe7+ {[%emt 0:01:38]} Kg7 {[%emt 0:00:12]} 18. Nxc8 {[%emt 0:01:03]} Qxc8 {[%emt 0:00:02]} 19. e4 {[%emt 0:03:11]} dxe4 {[%emt 0:01:03]} 20. Qxe4 {[%emt 0:00:16]} Qe6 {[%emt 0:01:27]} 21. Rfe1 {[%emt 0:02:25]} Qxe4 {[%emt 0:00:22]} 22. Rxe4 {[%emt 0:00:11]} Nd7 {[%emt 0:00:16]} 23. g3 {[%emt 0:03:12]} Raf8 {[%emt 0:00:19]} 24. Re7+ {[%emt 0:02:07]} R8f7 {[%emt 0:00:37]} 25. Rxf7+ {[%emt 0:00:11]} Kxf7 {[%emt 0:00:00]} 26. b4 {[%emt 0:01:30]} a4 {[%emt 0:00:00]} 27. Rb1 {[%emt 0:00:12]} Rf3 {[%emt 0:00:15]} 28. b5 {[%emt 0:00:37]} Rxa3 {[%emt 0:00:49]} 29. bxc6 {[%emt 0:00:24]} bxc6 {[%emt 0:00:01]} 30. Rb7 {[%emt 0:00:21]} Ke6 {[%emt 0:00:30]} 31. Rc7 {[%emt 0:00:34]} Kd6 {[%emt 0:00:07]} 32. Rc8 {[%emt 0:00:22]} Ra1+ {[%emt 0:00:18]} 33. Kg2 {[%emt 0:00:23]} a3 {[%emt 0:00:03]} 34. Ra8 {[%emt 0:00:13]} a2 {[%emt 0:00:03]} 35. Ra5 {[%emt 0:00:57]} Nb6 {[%emt 0:00:18]} 36. Kf3 $19 {[%emt 0:01:30]} Nd5 {[%emt 0:00:51]} 37. Ke2 {[%emt 0:03:27]} Nb4 {[%emt 0:00:14]} 38. Kd2 {[%emt 0:01:05]} Rb1 {[%emt 0:00:07]} 39. Kc3 {[%emt 0:01:01]} Nd5+ {[%emt 0:00:37]} 0-1